fUSD/lending_fUSD_20260602
["ID","MTS","AMOUNT","RATE_DAILY","PERIOD"]
[423726025,1780335039000,-500.0,0.00014899,2]
[423726035,1780335039000,-10000.0,0.000149,2]
[423726032,1780335039000,-382.83023992,0.00014899,2]
[423726027,1780335039000,-500.0,0.00014899,2]
[423726056,1780335039000,-161.12814006,0.00014962,2]
[423726104,1780335039000,-151.0,0.00014993,2]
[423726068,1780335039000,-256.70364359,0.00014986,2]
[423726090,1780335039000,-500.0,0.0001499,2]
[423726097,1780335039000,-248406.248165,0.00014991,2]
[423726094,1780335039000,-1897.9,0.0001499,2]
[423726098,1780335039000,-8720.47645,0.00014991,2]
[423726100,1780335039000,-679.1497824,0.00014993,2]
[423726101,1780335039000,-296503.5214739,0.00014993,2]
[423726102,1780335039000,-151.0,0.00014993,2]
[423726105,1780335039000,-151.0,0.00014997,2]
[423726106,1780335039000,-151.0,0.00014997,2]
[423726107,1780335039000,-500.0,0.00014998,2]
[423726103,1780335039000,-151.0,0.00014993,2]
[423726108,1780335039000,-395.14050061,0.00014998,2]
[423726109,1780335039000,-500.0,0.00014998,2]
[423726110,1780335039000,-500.0,0.00014998,2]
[423726111,1780335039000,-500.0,0.00014998,2]
[423726112,1780335039000,-552.87,0.00014998,2]
[423726114,1780335039000,-512.65,0.00014998,2]
[423726124,1780335039000,-672.82,0.00014999,2]
[423726115,1780335039000,-500.0,0.00014998,2]
[423726113,1780335039000,-500.0,0.00014998,2]
[423726116,1780335039000,-152.20324461,0.00014998,2]
[423726125,1780335039000,-672.82,0.00014999,2]
[423726118,1780335039000,-672.82,0.00014999,2]
[423726120,1780335039000,-672.82,0.00014999,2]
[423726117,1780335039000,-672.82,0.00014999,2]
[423726123,1780335039000,-672.82,0.00014999,2]
[423726122,1780335039000,-672.82,0.00014999,2]
[423726121,1780335039000,-672.82,0.00014999,2]
[423726055,1780335039000,-499.0,0.00014959,2]
[423726091,1780335039000,-500.0,0.0001499,2]
[423726096,1780335039000,-1652.0,0.00014991,5]
[423726119,1780335039000,-672.82,0.00014999,2]
[423726093,1780335039000,-500.0,0.0001499,2]
[423726095,1780335039000,-1897.9,0.0001499,2]
[423726067,1780335039000,-273.83936132,0.00014986,2]
[423726064,1780335039000,-264.97770365,0.00014986,2]
[423726072,1780335039000,-579.73,0.0001499,2]
[423726062,1780335039000,-2212.70631851,0.00014985,2]
[423726063,1780335039000,-172.47512054,0.00014985,2]
[423726069,1780335039000,-294.32751149,0.00014986,2]
[423726070,1780335039000,-672.82,0.0001499,2]
[423726074,1780335039000,-552.87,0.0001499,2]
[423726065,1780335039000,-232.42793293,0.00014986,2]
[423726066,1780335039000,-150.0,0.00014986,2]
[423726071,1780335039000,-672.82,0.0001499,2]
[423726076,1780335039000,-500.0,0.0001499,2]
[423726080,1780335039000,-500.0,0.0001499,2]
[423726073,1780335039000,-579.73,0.0001499,2]
[423726081,1780335039000,-543.92349054,0.0001499,2]
[423726092,1780335039000,-500.0,0.0001499,2]
[423726099,1780335039000,-162.6658276,0.00014993,2]
[423726089,1780335039000,-500.0,0.0001499,2]
[423726088,1780335039000,-500.0,0.0001499,2]
[423726079,1780335039000,-500.0,0.0001499,2]
[423726086,1780335039000,-500.0,0.0001499,2]
[423726084,1780335039000,-512.65,0.0001499,2]
[423726083,1780335039000,-500.0,0.0001499,2]
[423726085,1780335039000,-512.65,0.0001499,2]
[423726082,1780335039000,-500.0,0.0001499,2]
[423726078,1780335039000,-500.0,0.0001499,2]
[423726077,1780335039000,-500.0,0.0001499,2]
[423726075,1780335039000,-552.87,0.0001499,2]
[423726087,1780335039000,-500.0,0.0001499,2]
[423726177,1780335040000,-552.87,0.00014999,2]
[423726173,1780335040000,-500.0,0.00014999,2]
[423726176,1780335040000,-505.24076892,0.00014999,2]
[423726171,1780335040000,-500.0,0.00014999,2]
[423726172,1780335040000,-500.0,0.00014999,2]
[423726165,1780335040000,-500.0,0.00014999,2]
[423726170,1780335040000,-500.0,0.00014999,2]
[423726175,1780335040000,-500.0,0.00014999,2]
[423726167,1780335040000,-500.0,0.00014999,2]
[423726169,1780335040000,-163.43660373,0.00014999,2]
[423726163,1780335040000,-500.0,0.00014999,2]
[423726174,1780335040000,-500.0,0.00014999,2]
[423726189,1780335040000,-552.87,0.00014999,2]
[423726184,1780335040000,-552.87,0.00014999,2]
[423726187,1780335040000,-552.87,0.00014999,2]
[423726188,1780335040000,-552.87,0.00014999,2]
[423726190,1780335040000,-552.87,0.00014999,2]
[423726178,1780335040000,-552.87,0.00014999,2]
[423726186,1780335040000,-552.87,0.00014999,2]
[423726180,1780335040000,-552.87,0.00014999,2]
[423726181,1780335040000,-552.87,0.00014999,2]
[423726191,1780335040000,-552.87,0.00014999,2]
[423726182,1780335040000,-552.87,0.00014999,2]
[423726185,1780335040000,-552.87,0.00014999,2]
[423726183,1780335040000,-552.87,0.00014999,2]
[423726160,1780335040000,-579.81030719,0.00014999,2]
[423726194,1780335040000,-553.01,0.00014999,2]
[423726179,1780335040000,-552.87,0.00014999,2]
[423726157,1780335040000,-579.73,0.00014999,2]
[423726133,1780335040000,-672.82,0.00014999,2]
[423726149,1780335040000,-579.73,0.00014999,2]
[423726195,1780335040000,-500.0,0.00014999,2]
[423726126,1780335040000,-672.82,0.00014999,2]
[423726131,1780335040000,-672.82,0.00014999,2]
[423726127,1780335040000,-672.82,0.00014999,2]
[423726129,1780335040000,-672.82,0.00014999,2]
[423726130,1780335040000,-672.82,0.00014999,2]
[423726128,1780335040000,-672.82,0.00014999,2]
[423726140,1780335040000,-579.73,0.00014999,2]
[423726134,1780335040000,-672.82,0.00014999,2]
[423726135,1780335040000,-672.82,0.00014999,2]
[423726138,1780335040000,-579.73,0.00014999,2]
[423726139,1780335040000,-579.73,0.00014999,2]
[423726136,1780335040000,-672.97889731,0.00014999,2]
[423726137,1780335040000,-579.73,0.00014999,2]
[423726132,1780335040000,-672.82,0.00014999,2]
[423726142,1780335040000,-579.73,0.00014999,2]
[423726153,1780335040000,-579.73,0.00014999,2]
[423726155,1780335040000,-579.73,0.00014999,2]
[423726152,1780335040000,-579.73,0.00014999,2]
[423726141,1780335040000,-579.73,0.00014999,2]
[423726143,1780335040000,-579.73,0.00014999,2]
[423726145,1780335040000,-579.73,0.00014999,2]
[423726148,1780335040000,-579.73,0.00014999,2]
[423726144,1780335040000,-579.73,0.00014999,2]
[423726150,1780335040000,-579.73,0.00014999,2]
[423726146,1780335040000,-579.73,0.00014999,2]
[423726147,1780335040000,-579.73,0.00014999,2]
[423726151,1780335040000,-579.73,0.00014999,2]
[423726192,1780335040000,-552.87,0.00014999,2]
[423726197,1780335040000,-500.0,0.00014999,2]
[423726196,1780335040000,-500.0,0.00014999,2]
[423726230,1780335040000,-512.65,0.00014999,2]
[423726227,1780335040000,-512.65,0.00014999,2]
[423726232,1780335040000,-512.65,0.00014999,2]
[423726231,1780335040000,-512.65,0.00014999,2]
[423726234,1780335040000,-512.65,0.00014999,2]
[423726245,1780335040000,-500.0,0.00014999,2]
[423726244,1780335040000,-500.0,0.00014999,2]
[423726233,1780335040000,-512.65,0.00014999,2]
[423726238,1780335040000,-500.0,0.00014999,2]
[423726240,1780335040000,-500.0,0.00014999,2]
[423726237,1780335040000,-500.0,0.00014999,2]
[423726235,1780335040000,-512.65,0.00014999,2]
[423726239,1780335040000,-500.0,0.00014999,2]
[423726236,1780335040000,-512.87161067,0.00014999,2]
[423726242,1780335040000,-500.0,0.00014999,2]
[423726241,1780335040000,-500.0,0.00014999,2]
[423726243,1780335040000,-500.0,0.00014999,2]
[423726248,1780335040000,-500.0,0.00014999,2]
[423726250,1780335040000,-500.0,0.00014999,2]
[423726247,1780335040000,-500.0,0.00014999,2]
[423726254,1780335040000,-500.0,0.00014999,2]
[423726253,1780335040000,-500.0,0.00014999,2]
[423726249,1780335040000,-500.0,0.00014999,2]
[423726256,1780335040000,-281.57748234,0.00014999,2]
[423726251,1780335040000,-500.0,0.00014999,2]
[423726246,1780335040000,-204.15869689,0.00014999,2]
[423726255,1780335040000,-500.0,0.00014999,2]
[423726228,1780335040000,-512.65,0.00014999,2]
[423726229,1780335040000,-512.65,0.00014999,2]
[423726252,1780335040000,-500.0,0.00014999,2]
[423726226,1780335040000,-512.65,0.00014999,2]
[423726223,1780335040000,-512.65,0.00014999,2]
[423726202,1780335040000,-500.0,0.00014999,2]
[423726201,1780335040000,-500.0,0.00014999,2]
[423726203,1780335040000,-500.0,0.00014999,2]
[423726199,1780335040000,-500.0,0.00014999,2]
[423726200,1780335040000,-500.0,0.00014999,2]
[423726198,1780335040000,-500.0,0.00014999,2]
[423726204,1780335040000,-359.53775977,0.00014999,2]
[423726206,1780335040000,-500.0,0.00014999,2]
[423726205,1780335040000,-500.0,0.00014999,2]
[423726207,1780335040000,-500.0,0.00014999,2]
[423726211,1780335040000,-500.0,0.00014999,2]
[423726209,1780335040000,-500.0,0.00014999,2]
[423726208,1780335040000,-500.0,0.00014999,2]
[423726193,1780335040000,-552.87,0.00014999,2]
[423726214,1780335040000,-500.0,0.00014999,2]
[423726212,1780335040000,-269.43307717,0.00014999,2]
[423726224,1780335040000,-512.65,0.00014999,2]
[423726221,1780335040000,-512.65,0.00014999,2]
[423726222,1780335040000,-512.65,0.00014999,2]
[423726217,1780335040000,-500.0,0.00014999,2]
[423726219,1780335040000,-512.65,0.00014999,2]
[423726218,1780335040000,-581.17453971,0.00014999,2]
[423726225,1780335040000,-512.65,0.00014999,2]
[423726220,1780335040000,-512.65,0.00014999,2]
[423726215,1780335040000,-275.90819985,0.00014999,2]
[423726210,1780335040000,-500.0,0.00014999,2]
[423726213,1780335040000,-500.0,0.00014999,2]
[423726216,1780335040000,-500.0,0.00014999,2]
[423726319,1780335041000,-1897.9,0.00014999,2]
[423726287,1780335041000,-500.0,0.00014999,2]
[423726305,1780335041000,-1897.9,0.00014999,2]
[423726295,1780335041000,-500.0,0.00014999,2]
[423726314,1780335041000,-1897.9,0.00014999,2]
[423726311,1780335041000,-1897.9,0.00014999,2]
[423726308,1780335041000,-500.0,0.00014999,2]
[423726288,1780335041000,-500.0,0.00014999,2]
[423726316,1780335041000,-500.0,0.00014999,2]
[423726322,1780335041000,-500.0,0.00014999,2]
[423726298,1780335041000,-500.0,0.00014999,2]
[423726303,1780335041000,-1897.9,0.00014999,2]
[423726296,1780335041000,-500.0,0.00014999,2]
[423726293,1780335041000,-500.0,0.00014999,2]
[423726285,1780335041000,-500.0,0.00014999,2]
[423726304,1780335041000,-500.0,0.00014999,2]
[423726321,1780335041000,-1897.9,0.00014999,2]
[423726294,1780335041000,-500.0,0.00014999,2]
[423726313,1780335041000,-1897.9,0.00014999,2]
[423726301,1780335041000,-1897.9,0.00014999,2]
[423726306,1780335041000,-500.0,0.00014999,2]
[423726315,1780335041000,-1897.9,0.00014999,2]
[423726310,1780335041000,-500.0,0.00014999,2]
[423726312,1780335041000,-500.0,0.00014999,2]
[423726297,1780335041000,-500.0,0.00014999,2]
[423726309,1780335041000,-1897.9,0.00014999,2]
[423726290,1780335041000,-500.0,0.00014999,2]
[423726300,1780335041000,-500.0,0.00014999,2]
[423726320,1780335041000,-500.0,0.00014999,2]
[423726292,1780335041000,-500.0,0.00014999,2]
[423726280,1780335041000,-500.0,0.00014999,2]
[423726299,1780335041000,-500.0,0.00014999,2]
[423726257,1780335041000,-500.0,0.00014999,2]
[423726302,1780335041000,-500.0,0.00014999,2]
[423726258,1780335041000,-500.0,0.00014999,2]
[423726259,1780335041000,-500.0,0.00014999,2]
[423726269,1780335041000,-500.0,0.00014999,2]
[423726270,1780335041000,-500.0,0.00014999,2]
[423726261,1780335041000,-500.0,0.00014999,2]
[423726262,1780335041000,-500.0,0.00014999,2]
[423726260,1780335041000,-500.0,0.00014999,2]
[423726263,1780335041000,-500.0,0.00014999,2]
[423726268,1780335041000,-500.0,0.00014999,2]
[423726267,1780335041000,-500.0,0.00014999,2]
[423726265,1780335041000,-500.0,0.00014999,2]
[423726266,1780335041000,-500.0,0.00014999,2]
[423726264,1780335041000,-500.0,0.00014999,2]
[423726271,1780335041000,-500.0,0.00014999,2]
[423726276,1780335041000,-500.0,0.00014999,2]
[423726283,1780335041000,-500.0,0.00014999,2]
[423726272,1780335041000,-500.0,0.00014999,2]
[423726284,1780335041000,-500.0,0.00014999,2]
[423726281,1780335041000,-500.0,0.00014999,2]
[423726278,1780335041000,-500.0,0.00014999,2]
[423726273,1780335041000,-356.47846755,0.00014999,2]
[423726279,1780335041000,-500.0,0.00014999,2]
[423726274,1780335041000,-500.0,0.00014999,2]
[423726282,1780335041000,-500.0,0.00014999,2]
[423726277,1780335041000,-500.0,0.00014999,2]
[423726286,1780335041000,-500.0,0.00014999,2]
[423726291,1780335041000,-500.0,0.00014999,2]
[423726318,1780335041000,-500.0,0.00014999,2]
[423726307,1780335041000,-1897.9,0.00014999,2]
[423726370,1780335041000,-500.0,0.00014999,2]
[423726289,1780335041000,-500.0,0.00014999,2]
[423726354,1780335041000,-500.0,0.00014999,2]
[423726361,1780335041000,-500.0,0.00014999,2]
[423726332,1780335041000,-500.0,0.00014999,2]
[423726337,1780335041000,-1897.9,0.00014999,2]
[423726355,1780335041000,-500.0,0.00014999,2]
[423726357,1780335041000,-500.0,0.00014999,2]
[423726362,1780335041000,-500.0,0.00014999,2]
[423726371,1780335041000,-500.0,0.00014999,2]
[423726373,1780335041000,-500.0,0.00014999,2]
[423726367,1780335041000,-500.0,0.00014999,2]
[423726366,1780335041000,-500.0,0.00014999,2]
[423726377,1780335041000,-500.0,0.00014999,2]
[423726378,1780335041000,-500.0,0.00014999,2]
[423726330,1780335041000,-500.0,0.00014999,2]
[423726369,1780335041000,-500.0,0.00014999,2]
[423726375,1780335041000,-500.0,0.00014999,2]
[423726384,1780335041000,-300.0,0.00014999,2]
[423726382,1780335041000,-500.0,0.00014999,2]
[423726380,1780335041000,-500.0,0.00014999,2]
[423726365,1780335041000,-500.0,0.00014999,2]
[423726383,1780335041000,-300.0,0.00014999,2]
[423726376,1780335041000,-500.0,0.00014999,2]
[423726372,1780335041000,-500.0,0.00014999,2]
[423726364,1780335041000,-500.0,0.00014999,2]
[423726381,1780335041000,-285.78148871,0.00014999,2]
[423726374,1780335041000,-500.0,0.00014999,2]
[423726363,1780335041000,-500.0,0.00014999,2]
[423726317,1780335041000,-1897.9,0.00014999,2]
[423726368,1780335041000,-500.0,0.00014999,2]
[423726323,1780335041000,-1897.9,0.00014999,2]
[423726379,1780335041000,-500.0,0.00014999,2]
[423726325,1780335041000,-1897.9,0.00014999,2]
[423726334,1780335041000,-500.0,0.00014999,2]
[423726328,1780335041000,-500.0,0.00014999,2]
[423726331,1780335041000,-1897.9,0.00014999,2]
[423726324,1780335041000,-500.0,0.00014999,2]
[423726335,1780335041000,-1897.9,0.00014999,2]
[423726347,1780335041000,-500.0,0.00014999,2]
[423726339,1780335041000,-1898.0422324,0.00014999,2]
[423726356,1780335041000,-500.0,0.00014999,2]
[423726327,1780335041000,-1897.9,0.00014999,2]
[423726345,1780335041000,-500.0,0.00014999,2]
[423726329,1780335041000,-1897.9,0.00014999,2]
[423726340,1780335041000,-500.0,0.00014999,2]
[423726358,1780335041000,-500.0,0.00014999,2]
[423726326,1780335041000,-500.0,0.00014999,2]
[423726346,1780335041000,-500.0,0.00014999,2]
[423726343,1780335041000,-500.0,0.00014999,2]
[423726349,1780335041000,-500.0,0.00014999,2]
[423726333,1780335041000,-500.0,0.00014999,2]
[423726351,1780335041000,-500.0,0.00014999,2]
[423726336,1780335041000,-500.0,0.00014999,2]
[423726342,1780335041000,-500.0,0.00014999,2]
[423726350,1780335041000,-500.0,0.00014999,2]
[423726353,1780335041000,-500.0,0.00014999,2]
[423726360,1780335041000,-500.0,0.00014999,2]
[423726338,1780335041000,-500.0,0.00014999,2]
[423726359,1780335041000,-500.0,0.00014999,2]
[423726341,1780335041000,-500.0,0.00014999,2]
[423726348,1780335041000,-500.0,0.00014999,2]
[423726352,1780335041000,-500.0,0.00014999,2]
[423726344,1780335041000,-500.0,0.00014999,2]
[423726390,1780335042000,-300.0,0.00014999,2]
[423726386,1780335042000,-300.0,0.00014999,2]
[423726391,1780335042000,-2057.0,0.00015,5]
[423726388,1780335042000,-300.0,0.00014999,2]
[423726387,1780335042000,-300.0,0.00014999,2]
[423726385,1780335042000,-300.0,0.00014999,2]
[423726392,1780335042000,-1154567.55665797,0.00015,2]
[423726389,1780335042000,-781.56714637,0.00014999,2]
[423726393,1780335042000,-540522.42996825,0.00015,2]
[423726400,1780335042000,-265.96,0.00015,2]
[423726401,1780335042000,-1701.63226618,0.00015,2]
[423726399,1780335042000,-29819.01270196,0.00015,2]
[423726395,1780335042000,-1199.08742809,0.00014867,2]
[423726397,1780335042000,-329529.29306554,0.00015,2]
[423726398,1780335042000,-7158.42977913,0.00015,2]
[423726396,1780335042000,-353.41786384,0.00015,2]
[423726394,1780335042000,-251.33,0.00013831,2]
[423726428,1780335043000,-1368.214455,0.00015,2]
[423726461,1780335046000,-163.0,0.0001488,2]
[423726463,1780335046000,-1826.36344249,0.00015,2]
[423726462,1780335046000,-1199.08742809,0.00014883,2]
[423726465,1780335046000,-282.98055606,0.00015,2]
[423726464,1780335046000,-12797.36267778,0.00015,2]
[423726466,1780335046000,-9757.48037878,0.00015,2]
[423726472,1780335243000,500.0,0.0003013,120]
[423726473,1780335705000,500.0,0.0003013,120]
[423726476,1780335965000,-162.0,0.00012614,2]
[423726477,1780335981000,-162.0,0.00013057,2]
[423726482,1780336002000,-1004.48,0.00013119,2]
[423726480,1780336002000,-158.95,0.00013103,30]
[423726483,1780336002000,-985.93,0.00013182,2]
[423726481,1780336002000,-258.8155,0.00013103,2]
[423726479,1780336002000,-328.94,0.00013096,2]
[423726478,1780336002000,-464.16,0.00013074,2]
[423726484,1780336003000,-290.86,0.00013197,2]
[423726485,1780336050000,-150.0,0.00013139,2]
[423726486,1780336140000,2000.0,0.00030135,120]
[423726487,1780336165000,500.0,0.0003013,120]
[423726519,1780336232000,-166.66,0.00013699,2]
[423726516,1780336232000,-150.0,0.00013638,2]
[423726512,1780336232000,-150.0,0.00013525,2]
[423726508,1780336232000,-150.0,0.00013488,2]
[423726511,1780336232000,-162.0,0.00013499,2]
[423726513,1780336232000,-150.0,0.00013563,2]
[423726510,1780336232000,-150.0,0.00013488,2]
[423726507,1780336232000,-150.0,0.00013488,2]
[423726509,1780336232000,-150.0,0.00013488,2]
[423726504,1780336232000,-150.0,0.00013488,2]
[423726502,1780336232000,-1200.0,0.00013486,2]
[423726503,1780336232000,-300.0,0.00013487,2]
[423726498,1780336232000,-218.722567,0.0001337,2]
[423726497,1780336232000,-200.0,0.0001323,2]
[423726499,1780336232000,-1983.677433,0.0001337,2]
[423726500,1780336232000,-1004.48,0.00013447,2]
[423726501,1780336232000,-205.17820754,0.00013452,2]
[423726495,1780336232000,-1171.77948148,0.00013197,2]
[423726506,1780336232000,-150.0,0.00013488,2]
[423726496,1780336232000,-2000.0,0.00013213,2]
[423726515,1780336232000,-741.83,0.00013608,2]
[423726505,1780336232000,-150.0,0.00013488,2]
[423726518,1780336232000,-200.0,0.00013699,2]
[423726523,1780336232000,-252.94442273,0.00013736,2]
[423726514,1780336232000,-150.0,0.000136,2]
[423726537,1780336232000,-610.60967784,0.00013876,2]
[423726542,1780336232000,-150.0,0.00013937,2]
[423726536,1780336232000,-600.0,0.00013876,2]
[423726539,1780336232000,-150.0,0.00013916,2]
[423726541,1780336232000,-1011.75,0.00013927,2]
[423726534,1780336232000,-150.0,0.00013862,2]
[423726535,1780336232000,-150.0,0.00013862,2]
[423726532,1780336232000,-143.8295553,0.00013825,2]
[423726543,1780336232000,-162.0,0.00013942,2]
[423726533,1780336232000,-166.66,0.00013836,2]
[423726530,1780336232000,-150.0,0.00013787,2]
[423726517,1780336232000,-150.0,0.00013675,2]
[423726528,1780336232000,-601.14594491,0.00013775,2]
[423726529,1780336232000,-150.0,0.00013787,2]
[423726538,1780336232000,-150.0,0.000139,2]
[423726525,1780336232000,-150.0,0.0001375,2]
[423726521,1780336232000,-150.0,0.00013712,2]
[423726522,1780336232000,-2500.0,0.00013717,2]
[423726520,1780336232000,-150.0,0.00013702,2]
[423726531,1780336232000,-6.1704447,0.00013825,2]
[423726524,1780336232000,-150.0,0.00013737,2]
[423726527,1780336232000,-403.33405509,0.00013775,2]
[423726526,1780336232000,-215.65015035,0.00013752,2]
[423726564,1780336233000,-166.66,0.0001411,2]
[423726573,1780336233000,-150.0,0.000142,2]
[423726570,1780336233000,-150.0,0.00014162,2]
[423726566,1780336233000,-150.0,0.00014125,2]
[423726568,1780336233000,-150.0,0.0001413,2]
[423726557,1780336233000,-500.0,0.00014082,2]
[423726555,1780336233000,-150.0,0.0001405,2]
[423726550,1780336233000,-250.0,0.00014,2]
[423726560,1780336233000,-150.0,0.00014087,2]
[423726562,1780336233000,-1004.48,0.00014102,2]
[423726548,1780336233000,-1026.22803777,0.0001399,2]
[423726587,1780336233000,-150.0,0.00014274,2]
[423726544,1780336233000,-166.66,0.00013973,2]
[423726545,1780336233000,-150.0,0.00013975,2]
[423726553,1780336233000,-150.0,0.00014012,2]
[423726579,1780336233000,-150.0,0.00014237,2]
[423726546,1780336233000,-150.0,0.00013987,2]
[423726581,1780336233000,-150.0,0.00014237,2]
[423726589,1780336233000,-6676.69619074,0.00014324,2]
[423726596,1780336233000,-5971.50745355,0.00014404,2]
[423726599,1780336233000,-6727.8399879,0.00014404,2]
[423726598,1780336233000,-10736.19925777,0.00014404,2]
[423726600,1780336233000,-40380.10903081,0.00014404,2]
[423726597,1780336233000,-5191.54365359,0.00014404,2]
[423726595,1780336233000,-150.0,0.00014387,2]
[423726591,1780336233000,-150.0,0.00014344,2]
[423726594,1780336233000,-166.66,0.00014384,2]
[423726592,1780336233000,-150.0,0.00014349,2]
[423726588,1780336233000,-150.0,0.00014312,2]
[423726586,1780336233000,-350.0,0.00014261,2]
[423726590,1780336233000,-2174.73342367,0.00014324,2]
[423726575,1780336233000,-150.0,0.00014237,2]
[423726577,1780336233000,-150.0,0.00014237,2]
[423726584,1780336233000,-166.66,0.00014247,2]
[423726593,1780336233000,-500.0,0.00014384,2]
[423726609,1780336241000,-538.715813,0.00014404,2]
[423726603,1780336241000,-221884.30193066,0.00014404,2]
[423726610,1780336241000,-1342.14611922,0.00014404,2]
[423726614,1780336241000,-1004.48,0.0001443,2]
[423726611,1780336241000,-489992.4493535,0.00014404,2]
[423726613,1780336241000,-150.0,0.00014424,2]
[423726612,1780336241000,-8851.42961439,0.00014406,2]
[423726661,1780336242000,-33240.6068,0.00014722,2]
[423726660,1780336242000,-500.0,0.00014721,2]
[423726658,1780336242000,-626.23,0.00014721,2]
[423726663,1780336242000,-150.0,0.00014724,2]
[423726662,1780336242000,-2000.0,0.00014722,2]
[423726664,1780336242000,-12938.47972052,0.00014726,2]
[423726654,1780336242000,-500.0,0.00014683,2]
[423726659,1780336242000,-500.0,0.00014721,2]
[423726657,1780336242000,-733.99,0.00014721,2]
[423726656,1780336242000,-12938.47972052,0.00014691,2]
[423726655,1780336242000,-150.0,0.00014687,2]
[423726653,1780336242000,-12938.47972052,0.00014657,2]
[423726665,1780336242000,-150.0,0.00014737,2]
[423726667,1780336242000,-350.0,0.00014758,2]
[423726680,1780336242000,-500.0,0.00014791,2]
[423726678,1780336242000,-626.23,0.00014791,2]
[423726671,1780336242000,-161.12814006,0.00014762,2]
[423726669,1780336242000,-12938.47972052,0.00014761,2]
[423726672,1780336242000,-350.0,0.00014769,2]
[423726673,1780336242000,-150.0,0.00014772,2]
[423726668,1780336242000,-46832.64947545,0.0001476,2]
[423726674,1780336242000,-500.0,0.00014776,2]
[423726677,1780336242000,-733.99,0.00014791,2]
[423726666,1780336242000,-46832.64947551,0.00014742,2]
[423726675,1780336242000,-46832.64947545,0.00014777,2]
[423726676,1780336242000,-420.0,0.00014783,2]
[423726681,1780336242000,-46832.64947545,0.00014795,2]
[423726682,1780336242000,-12938.47972052,0.00014796,2]
[423726647,1780336242000,-12938.47972058,0.00014587,2]
[423726670,1780336242000,-150.0,0.00014762,2]
[423726648,1780336242000,-150.0,0.00014612,2]
[423726616,1780336242000,-150.0,0.00014462,2]
[423726646,1780336242000,-2500.0,0.00014581,2]
[423726683,1780336242000,-150.0,0.00014799,2]
[423726622,1780336242000,-11740.87,0.00014497,2]
[423726617,1780336242000,-150.0,0.00014487,2]
[423726615,1780336242000,-476.77,0.00014445,2]
[423726620,1780336242000,-1572.2,0.00014497,2]
[423726618,1780336242000,-8851.42961439,0.00014489,2]
[423726621,1780336242000,-1206.05,0.00014497,2]
[423726619,1780336242000,-500.0,0.00014493,2]
[423726623,1780336242000,-150.0,0.00014499,2]
[423726626,1780336242000,-350.0,0.00014518,2]
[423726625,1780336242000,-9999.99,0.00014504,2]
[423726627,1780336242000,-300.0,0.00014534,2]
[423726628,1780336242000,-300.0,0.00014534,2]
[423726629,1780336242000,-300.0,0.00014534,2]
[423726644,1780336242000,-8851.42961439,0.00014571,2]
[423726631,1780336242000,-300.0,0.00014534,2]
[423726632,1780336242000,-200.0,0.00014534,2]
[423726636,1780336242000,-200.0,0.00014534,2]
[423726637,1780336242000,-200.0,0.00014534,2]
[423726634,1780336242000,-200.0,0.00014534,2]